[Event "Early-Titled-Tuesday-Blitz-May-28-2024"]
[Site "Chess.com"]
[Date "2024.05.28"]
[Round "2"]
[White "ImportedItalianMaple"]
[Black "Abund"]
[Result "0-1"]
[WhiteElo "2557"]
[BlackElo "2792"]
[TimeControl "180+1"]
[EndTime "8:18:23 PDT"]
[Termination "Abund won on time"]

1. e4 {[%clk 0:03:00.9]} 1... c6 {[%clk 0:03:00.3]} 2. d4 {[%clk 0:02:59.4]}
2... d5 {[%clk 0:03:01.2]} 3. e5 {[%clk 0:02:59.8]} 3... c5 {[%clk 0:03:00.1]}
4. dxc5 {[%clk 0:02:59.9]} 4... e6 {[%clk 0:03:00.7]} 5. a3 {[%clk 0:03:00.1]}
5... Bxc5 {[%clk 0:02:57.4]} 6. Qg4 {[%clk 0:03:00.5]} 6... Ne7 {[%clk
0:02:56.6]} 7. Nf3 {[%clk 0:03:00.9]} 7... Qb6 {[%clk 0:02:40.1]} 8. Bd3 {[%clk
0:02:53.8]} 8... Bxf2+ {[%clk 0:02:32.2]} 9. Ke2 {[%clk 0:02:54]} 9... Nbc6
{[%clk 0:02:15.6]} 10. Rf1 {[%clk 0:02:46]} 10... Bc5 {[%clk 0:01:53.4]} 11.
Qxg7 {[%clk 0:02:19.3]} 11... Rg8 {[%clk 0:01:50.9]} 12. Qxh7 {[%clk 0:02:17.4]}
12... Bd7 {[%clk 0:01:36.1]} 13. g3 {[%clk 0:01:42.4]} 13... O-O-O {[%clk
0:01:35.5]} 14. c3 {[%clk 0:01:42.2]} 14... Qc7 {[%clk 0:01:10.3]} 15. b4 {[%clk
0:01:26.4]} 15... Bb6 {[%clk 0:01:05.8]} 16. Bf4 {[%clk 0:00:26.2]} 16... Ng6
{[%clk 0:01:05]} 17. Qxf7 {[%clk 0:00:18.4]} 17... Rdf8 {[%clk 0:00:55.3]} 18.
Qh7 {[%clk 0:00:15.4]} 18... Nxf4+ {[%clk 0:00:48.6]} 19. gxf4 {[%clk
0:00:15.5]} 19... Rg2+ {[%clk 0:00:40.2]} 20. Kd1 {[%clk 0:00:16]} 20... Rxf4
{[%clk 0:00:40.5]} 21. Nbd2 {[%clk 0:00:15.8]} 21... a6 {[%clk 0:00:24.1]} 22.
h4 {[%clk 0:00:13.9]} 22... Kb8 {[%clk 0:00:24.4]} 23. h5 {[%clk 0:00:13.5]}
23... Ka7 {[%clk 0:00:24]} 24. h6 {[%clk 0:00:10.9]} 24... Nxe5 {[%clk
0:00:21.8]} 25. Nxe5 {[%clk 0:00:07.9]} 25... Qxc3 {[%clk 0:00:18.9]} 26. Ra2
{[%clk 0:00:04.4]} 26... Ba4+ {[%clk 0:00:17]} 27. Ke1 {[%clk 0:00:02.9]} 27...
Qxe5+ {[%clk 0:00:17.3]} 0-1

[Event "Early-Titled-Tuesday-Blitz-May-28-2024"]
[Site "Chess.com"]
[Date "2024.05.28"]
[Round "2"]
[White "NiranjanNavalgund"]
[Black "fastestmindalive"]
[Result "1-0"]
[WhiteElo "2443"]
[BlackElo "2716"]
[TimeControl "180+1"]
[EndTime "8:18:23 PDT"]
[Termination "NiranjanNavalgund won on time"]

1. d4 {[%clk 0:03:00.9]} 1... Nf6 {[%clk 0:02:53]} 2. c4 {[%clk 0:02:58.1]} 2...
g6 {[%clk 0:02:49.2]} 3. Nc3 {[%clk 0:02:57.7]} 3... d6 {[%clk 0:02:48.2]} 4. e4
{[%clk 0:02:57.6]} 4... Bg7 {[%clk 0:02:47.9]} 5. Bd3 {[%clk 0:02:58.1]} 5...
Nc6 {[%clk 0:02:46]} 6. Nge2 {[%clk 0:02:58.3]} 6... Nd7 {[%clk 0:02:42.7]} 7.
Be3 {[%clk 0:02:56.4]} 7... e5 {[%clk 0:02:41.6]} 8. d5 {[%clk 0:02:56.3]} 8...
Nd4 {[%clk 0:02:41]} 9. Rb1 {[%clk 0:02:53.5]} 9... c5 {[%clk 0:02:35.9]} 10.
dxc6 {[%clk 0:02:51.8]} 10... bxc6 {[%clk 0:02:35.4]} 11. b4 {[%clk 0:02:50]}
11... O-O {[%clk 0:02:29.9]} 12. O-O {[%clk 0:02:50.4]} 12... f5 {[%clk
0:02:23.2]} 13. f4 {[%clk 0:02:48.8]} 13... Qh4 {[%clk 0:02:14]} 14. exf5 {[%clk
0:02:44.1]} 14... gxf5 {[%clk 0:02:09.8]} 15. Ng3 {[%clk 0:02:37.4]} 15... e4
{[%clk 0:02:00.7]} 16. Bc2 {[%clk 0:02:32.5]} 16... Nxc2 {[%clk 0:01:57.7]} 17.
Qxc2 {[%clk 0:02:33.4]} 17... Nf6 {[%clk 0:01:47.6]} 18. Kh1 {[%clk 0:02:16.7]}
18... Ng4 {[%clk 0:01:44.9]} 19. Bg1 {[%clk 0:02:16.7]} 19... a6 {[%clk
0:01:39]} 20. Rbd1 {[%clk 0:02:15.4]} 20... Rf6 {[%clk 0:01:38.6]} 21. Nce2
{[%clk 0:02:09.3]} 21... Ra7 {[%clk 0:01:33.7]} 22. h3 {[%clk 0:02:06.4]} 22...
Raf7 {[%clk 0:01:32.1]} 23. a4 {[%clk 0:01:58]} 23... Bd7 {[%clk 0:01:28.6]} 24.
Qb3 {[%clk 0:01:51.1]} 24... Be6 {[%clk 0:00:43.3]} 25. Nd4 {[%clk 0:01:47.8]}
25... Bxc4 {[%clk 0:00:39.7]} 26. Qxc4 {[%clk 0:01:44.8]} 26... Qxg3 {[%clk
0:00:38.3]} 27. Ne2 {[%clk 0:01:43.7]} 27... Qh4 {[%clk 0:00:36.7]} 28. Qxc6
{[%clk 0:01:40.6]} 28... Rg6 {[%clk 0:00:31.4]} 29. Rxd6 {[%clk 0:01:38.7]}
29... Bf6 {[%clk 0:00:31.5]} 30. Qc8+ {[%clk 0:01:35]} 30... Kg7 {[%clk
0:00:30.3]} 31. Rd7 {[%clk 0:01:27.9]} 31... Be7 {[%clk 0:00:29.1]} 32. Qc3+
{[%clk 0:01:25.8]} 32... Kh6 {[%clk 0:00:28]} 33. Rd5 {[%clk 0:01:13.2]} 33...
e3 {[%clk 0:00:25.1]} 34. Bxe3 {[%clk 0:01:09.9]} 34... Re6 {[%clk 0:00:25]} 35.
Rf3 {[%clk 0:01:04.3]} 35... Bf6 {[%clk 0:00:23]} 36. Qd2 {[%clk 0:00:59.2]}
36... Rfe7 {[%clk 0:00:20.4]} 37. Rd3 {[%clk 0:00:56.8]} 1-0

[Event "Early-Titled-Tuesday-Blitz-May-28-2024"]
[Site "Chess.com"]
[Date "2024.05.28"]
[Round "2"]
[White "Chessbard1972"]
[Black "monomita"]
[Result "0-1"]
[WhiteElo "2413"]
[BlackElo "2728"]
[TimeControl "180+1"]
[EndTime "8:18:23 PDT"]
[Termination "monomita won by resignation"]

1. e4 {[%clk 0:03:00.9]} 1... e6 {[%clk 0:02:57.4]} 2. d4 {[%clk 0:03:00.4]}
2... d5 {[%clk 0:02:58.3]} 3. e5 {[%clk 0:03:00.1]} 3... c5 {[%clk 0:02:58]} 4.
dxc5 {[%clk 0:03:01]} 4... Nc6 {[%clk 0:02:56.5]} 5. Nf3 {[%clk 0:03:00.3]} 5...
Bxc5 {[%clk 0:02:56.5]} 6. Bd3 {[%clk 0:03:00.6]} 6... Nge7 {[%clk 0:02:56.8]}
7. Bf4 {[%clk 0:03:00.5]} 7... Ng6 {[%clk 0:02:56.9]} 8. Bg3 {[%clk 0:03:00.8]}
8... Qb6 {[%clk 0:02:56.5]} 9. O-O {[%clk 0:03:00.7]} 9... Qxb2 {[%clk 0:02:56]}
10. Nbd2 {[%clk 0:03:00.8]} 10... Qb6 {[%clk 0:02:52.5]} 11. c4 {[%clk
0:02:58.8]} 11... O-O {[%clk 0:02:50.1]} 12. Rb1 {[%clk 0:02:56.1]} 12... Qd8
{[%clk 0:02:48.9]} 13. h4 {[%clk 0:02:49.1]} 13... dxc4 {[%clk 0:02:45]} 14.
Bxc4 {[%clk 0:02:48.4]} 14... Nge7 {[%clk 0:02:44.1]} 15. Qe2 {[%clk 0:02:43.4]}
15... Nf5 {[%clk 0:02:41.9]} 16. Bf4 {[%clk 0:02:37.5]} 16... Ncd4 {[%clk
0:02:36.8]} 17. Nxd4 {[%clk 0:02:35.6]} 17... Qxd4 {[%clk 0:02:30.8]} 18. Qg4
{[%clk 0:02:17.3]} 18... h5 {[%clk 0:02:12.3]} 19. Qf3 {[%clk 0:01:57.2]} 19...
Nxh4 {[%clk 0:02:10.1]} 20. Qg3 {[%clk 0:01:56.2]} 20... Nf5 {[%clk 0:01:54.5]}
21. Qf3 {[%clk 0:01:56.2]} 21... h4 {[%clk 0:01:51.1]} 22. Rbc1 {[%clk
0:01:54.6]} 22... Be7 {[%clk 0:01:36.2]} 23. Rfd1 {[%clk 0:01:51.2]} 23... Qb6
{[%clk 0:01:16.1]} 24. Ne4 {[%clk 0:01:48.5]} 24... Rd8 {[%clk 0:01:09.3]} 25.
Qg4 {[%clk 0:01:45.6]} 25... Bd7 {[%clk 0:01:00.1]} 26. Nf6+ {[%clk 0:01:43.4]}
26... Bxf6 {[%clk 0:01:00.3]} 27. exf6 {[%clk 0:01:43.6]} 27... Ba4 {[%clk
0:00:57.1]} 28. Rxd8+ {[%clk 0:01:32]} 28... Rxd8 {[%clk 0:00:56.1]} 29. fxg7
{[%clk 0:01:12.9]} 29... Qb2 {[%clk 0:00:50]} 30. Qg5 {[%clk 0:00:55.1]} 30...
Rc8 {[%clk 0:00:39.7]} 31. Qh5 {[%clk 0:00:36.5]} 31... Qxg7 {[%clk 0:00:32.5]}
32. Bd3 {[%clk 0:00:35.9]} 32... Rxc1+ {[%clk 0:00:30.6]} 33. Bxc1 {[%clk
0:00:36]} 33... Bc6 {[%clk 0:00:30.9]} 34. f3 {[%clk 0:00:34.4]} 34... Qd4+
{[%clk 0:00:30.3]} 35. Kh2 {[%clk 0:00:32.7]} 35... Qd6+ {[%clk 0:00:28.6]} 36.
Kg1 {[%clk 0:00:29.5]} 36... Qxd3 {[%clk 0:00:27.8]} 37. Qg5+ {[%clk 0:00:28.6]}
37... Kf8 {[%clk 0:00:27.6]} 38. Qd8+ {[%clk 0:00:28.4]} 38... Qxd8 {[%clk
0:00:26.3]} 0-1

[Event "Early-Titled-Tuesday-Blitz-May-28-2024"]
[Site "Chess.com"]
[Date "2024.05.28"]
[Round "2"]
[White "TigrVShlyape"]
[Black "kecalk"]
[Result "1/2-1/2"]
[WhiteElo "2904"]
[BlackElo "2550"]
[TimeControl "180+1"]
[EndTime "8:18:24 PDT"]
[Termination "Game drawn by repetition"]

1. e4 {[%clk 0:03:00.9]} 1... e5 {[%clk 0:02:59.8]} 2. Nf3 {[%clk 0:03:00.7]}
2... Nc6 {[%clk 0:03:00]} 3. Bb5 {[%clk 0:03:00.4]} 3... a6 {[%clk 0:03:00.3]}
4. Ba4 {[%clk 0:03:00.7]} 4... Nf6 {[%clk 0:03:00.2]} 5. O-O {[%clk 0:03:00.9]}
5... b5 {[%clk 0:03:00.6]} 6. Bb3 {[%clk 0:03:00.7]} 6... Bc5 {[%clk 0:03:01.3]}
7. c3 {[%clk 0:02:59.5]} 7... d6 {[%clk 0:03:01.3]} 8. d4 {[%clk 0:02:59.5]}
8... Bb6 {[%clk 0:03:01.7]} 9. h3 {[%clk 0:03:00]} 9... Bb7 {[%clk 0:03:01.3]}
10. Re1 {[%clk 0:02:58]} 10... O-O {[%clk 0:02:55.9]} 11. Be3 {[%clk 0:02:56.4]}
11... h6 {[%clk 0:02:33.2]} 12. Nbd2 {[%clk 0:02:54.2]} 12... Re8 {[%clk
0:02:31.3]} 13. d5 {[%clk 0:02:45.5]} 13... Ne7 {[%clk 0:02:23.5]} 14. Bxb6
{[%clk 0:02:44.8]} 14... cxb6 {[%clk 0:02:24.4]} 15. Nf1 {[%clk 0:02:36.4]}
15... Ng6 {[%clk 0:02:22.6]} 16. Bc2 {[%clk 0:02:29.8]} 16... Bc8 {[%clk
0:02:18.8]} 17. Ne3 {[%clk 0:02:28.2]} 17... Bd7 {[%clk 0:02:02.9]} 18. Nh2
{[%clk 0:02:24.7]} 18... Nf4 {[%clk 0:01:58]} 19. h4 {[%clk 0:02:24.2]} 19... g6
{[%clk 0:01:46]} 20. g3 {[%clk 0:02:24]} 20... N4h5 {[%clk 0:01:46.2]} 21. Bd3
{[%clk 0:02:11.1]} 21... Ng7 {[%clk 0:01:39.3]} 22. Qe2 {[%clk 0:02:04.7]} 22...
Rf8 {[%clk 0:01:32.6]} 23. Kh1 {[%clk 0:01:43.1]} 23... Nfh5 {[%clk 0:01:29.6]}
24. Neg4 {[%clk 0:01:26.7]} 24... f5 {[%clk 0:01:14.6]} 25. exf5 {[%clk
0:01:06]} 25... gxf5 {[%clk 0:01:14.6]} 26. Nxh6+ {[%clk 0:00:46.8]} 26... Kh7
{[%clk 0:01:14.5]} 27. N6g4 {[%clk 0:00:45.7]} 27... e4 {[%clk 0:01:10.6]} 28.
Bc2 {[%clk 0:00:43.5]} 28... fxg4 {[%clk 0:01:09.4]} 29. Bxe4+ {[%clk
0:00:42.6]} 29... Kg8 {[%clk 0:00:48.3]} 30. Nxg4 {[%clk 0:00:37.6]} 30... Bxg4
{[%clk 0:00:48.4]} 31. Qxg4 {[%clk 0:00:37.2]} 31... Rxf2 {[%clk 0:00:49.1]} 32.
Kg1 {[%clk 0:00:35.4]} 32... Qf6 {[%clk 0:00:45.3]} 33. Rf1 {[%clk 0:00:20.5]}
33... Rf8 {[%clk 0:00:44.9]} 34. Bd3 {[%clk 0:00:20.4]} 34... Rf3 {[%clk
0:00:32.5]} 35. Kh2 {[%clk 0:00:20.3]} 35... Rf2+ {[%clk 0:00:27.7]} 36. Kg1
{[%clk 0:00:20.2]} 36... Rf3 {[%clk 0:00:27.8]} 37. Kh2 {[%clk 0:00:20.5]} 37...
Rf2+ {[%clk 0:00:18]} 38. Kg1 {[%clk 0:00:20.8]} 1/2-1/2

[Event "Early-Titled-Tuesday-Blitz-May-28-2024"]
[Site "Chess.com"]
[Date "2024.05.28"]
[Round "2"]
[White "janhelmer03"]
[Black "dozer80"]
[Result "0-1"]
[WhiteElo "2405"]
[BlackElo "2707"]
[TimeControl "180+1"]
[EndTime "8:18:25 PDT"]
[Termination "dozer80 won on time"]

1. Nf3 {[%clk 0:02:55.6]} 1... d5 {[%clk 0:02:59.3]} 2. e3 {[%clk 0:02:55]} 2...
c5 {[%clk 0:02:58.5]} 3. b3 {[%clk 0:02:50.8]} 3... a6 {[%clk 0:02:57.9]} 4. Bb2
{[%clk 0:02:48.5]} 4... Nc6 {[%clk 0:02:57.4]} 5. d4 {[%clk 0:02:44.8]} 5... Bg4
{[%clk 0:02:55.3]} 6. dxc5 {[%clk 0:02:42.6]} 6... e6 {[%clk 0:02:51.1]} 7. Nbd2
{[%clk 0:02:39.3]} 7... Nf6 {[%clk 0:02:49.7]} 8. Be2 {[%clk 0:02:39.6]} 8...
Bxc5 {[%clk 0:02:49.1]} 9. O-O {[%clk 0:02:39.4]} 9... O-O {[%clk 0:02:49]} 10.
c4 {[%clk 0:02:39.4]} 10... Qe7 {[%clk 0:02:47.1]} 11. h3 {[%clk 0:02:34.1]}
11... Bh5 {[%clk 0:02:44.9]} 12. cxd5 {[%clk 0:02:31.6]} 12... exd5 {[%clk
0:02:44.3]} 13. a3 {[%clk 0:02:18.1]} 13... Rfd8 {[%clk 0:02:40.8]} 14. b4
{[%clk 0:02:17.8]} 14... Ba7 {[%clk 0:02:40]} 15. Nb3 {[%clk 0:02:15.8]} 15...
Ne4 {[%clk 0:02:31.3]} 16. Nbd4 {[%clk 0:02:13.8]} 16... Bxf3 {[%clk 0:02:25.1]}
17. Bxf3 {[%clk 0:01:47.5]} 17... Ne5 {[%clk 0:02:23]} 18. Nf5 {[%clk
0:01:37.8]} 18... Qe6 {[%clk 0:02:21.2]} 19. Nd4 {[%clk 0:01:33.6]} 19... Qe8
{[%clk 0:02:20.5]} 20. Be2 {[%clk 0:01:22.7]} 20... Nc4 {[%clk 0:02:16.1]} 21.
Ra2 {[%clk 0:00:44.4]} 21... Nxb2 {[%clk 0:02:02.7]} 22. Rxb2 {[%clk 0:00:44]}
22... Rac8 {[%clk 0:02:03.3]} 23. Bd3 {[%clk 0:00:28.5]} 23... Rc3 {[%clk
0:02:00]} 24. Rb3 {[%clk 0:00:18.8]} 24... Bxd4 {[%clk 0:01:56.4]} 25. exd4
{[%clk 0:00:16.5]} 25... Rxb3 {[%clk 0:01:56]} 26. Qxb3 {[%clk 0:00:17.1]} 26...
Nd2 {[%clk 0:01:56.2]} 27. Bxh7+ {[%clk 0:00:17.7]} 27... Kh8 {[%clk 0:01:54.8]}
28. Qd1 {[%clk 0:00:15.9]} 28... Nxf1 {[%clk 0:01:54.3]} 29. Qh5 {[%clk
0:00:16]} 29... Ng3 {[%clk 0:01:36.3]} 30. fxg3 {[%clk 0:00:15.3]} 30... Qe3+
{[%clk 0:01:36.2]} 31. Kh2 {[%clk 0:00:15.2]} 31... Qh6 {[%clk 0:01:36.9]} 32.
Qxh6 {[%clk 0:00:13.1]} 32... gxh6 {[%clk 0:01:37.8]} 33. Bf5 {[%clk 0:00:12]}
33... Re8 {[%clk 0:01:35.5]} 34. g4 {[%clk 0:00:10.4]} 34... Re3 {[%clk
0:01:35.4]} 35. Bc8 {[%clk 0:00:08.3]} 35... Re7 {[%clk 0:01:26.4]} 36. Kg3
{[%clk 0:00:08.6]} 36... Rc7 {[%clk 0:01:25.7]} 37. Bf5 {[%clk 0:00:07.5]} 37...
Kg7 {[%clk 0:01:22.8]} 38. Kf4 {[%clk 0:00:07.9]} 38... Kf6 {[%clk 0:01:22.8]}
39. h4 {[%clk 0:00:08.6]} 39... Re7 {[%clk 0:01:06.3]} 40. g5+ {[%clk
0:00:08.2]} 40... hxg5+ {[%clk 0:01:06.5]} 41. hxg5+ {[%clk 0:00:09.1]} 41...
Kg7 {[%clk 0:01:07.1]} 42. g3 {[%clk 0:00:07.9]} 42... Kf8 {[%clk 0:01:05.8]}
43. g6 {[%clk 0:00:07.5]} 43... f6 {[%clk 0:01:04.8]} 44. g4 {[%clk 0:00:07.5]}
44... Kg7 {[%clk 0:01:04.4]} 45. g5 {[%clk 0:00:06.9]} 45... Rc7 {[%clk
0:01:04.7]} 46. gxf6+ {[%clk 0:00:06]} 46... Kxf6 {[%clk 0:01:05.6]} 47. Bd3
{[%clk 0:00:02.4]} 47... Rc3 {[%clk 0:01:03.1]} 48. Bf5 {[%clk 0:00:02.8]} 48...
Rc4 {[%clk 0:01:02.2]} 49. Bc8 {[%clk 0:00:01]} 49... Rxc8 {[%clk 0:01:01.9]}
0-1

[Event "Early-Titled-Tuesday-Blitz-May-28-2024"]
[Site "Chess.com"]
[Date "2024.05.28"]
[Round "2"]
[White "Bauman_Guy"]
[Black "SharapovEvgeny"]
[Result "1-0"]
[WhiteElo "2923"]
[BlackElo "2610"]
[TimeControl "180+1"]
[EndTime "8:18:26 PDT"]
[Termination "Bauman_Guy won by resignation"]

1. e4 {[%clk 0:03:00.9]} 1... c5 {[%clk 0:02:59.6]} 2. Nf3 {[%clk 0:03:00.3]}
2... d6 {[%clk 0:02:59.9]} 3. d4 {[%clk 0:03:00.8]} 3... cxd4 {[%clk 0:02:59.8]}
4. Nxd4 {[%clk 0:03:01.7]} 4... Nf6 {[%clk 0:02:59.7]} 5. Nc3 {[%clk 0:03:02.3]}
5... Nc6 {[%clk 0:03:00.3]} 6. Bg5 {[%clk 0:03:01.7]} 6... e6 {[%clk 0:03:00.3]}
7. Bb5 {[%clk 0:03:00.4]} 7... Bd7 {[%clk 0:02:59.6]} 8. Bxc6 {[%clk 0:03:00]}
8... bxc6 {[%clk 0:02:58.6]} 9. Qf3 {[%clk 0:03:00.9]} 9... c5 {[%clk 0:02:49]}
10. Nb3 {[%clk 0:02:56.6]} 10... Be7 {[%clk 0:02:45.6]} 11. O-O-O {[%clk
0:02:53]} 11... Rb8 {[%clk 0:02:36.4]} 12. e5 {[%clk 0:02:49]} 12... dxe5 {[%clk
0:02:30.8]} 13. Bxf6 {[%clk 0:02:48.5]} 13... gxf6 {[%clk 0:02:30.3]} 14. Ne4
{[%clk 0:02:48.6]} 14... c4 {[%clk 0:02:16]} 15. Nbc5 {[%clk 0:02:42.5]} 15...
Qb6 {[%clk 0:02:15.6]} 16. Rxd7 {[%clk 0:02:27.6]} 16... Qxb2+ {[%clk
0:02:04.3]} 17. Kd2 {[%clk 0:02:26.6]} 17... f5 {[%clk 0:01:57.5]} 18. Nd6+
{[%clk 0:01:05.9]} 18... Bxd6 {[%clk 0:01:52.1]} 19. Rxd6 {[%clk 0:01:06.8]}
19... Qb4+ {[%clk 0:01:46.3]} 20. Ke2 {[%clk 0:01:07.2]} 20... Qxc5 {[%clk
0:01:42.8]} 21. Rhd1 {[%clk 0:01:07.8]} 21... O-O {[%clk 0:01:40.7]} 22. Qg3+
{[%clk 0:01:04.1]} 22... Kh8 {[%clk 0:01:40]} 23. Qg5 {[%clk 0:01:04.7]} 23...
Rb2 {[%clk 0:01:23]} 24. Qf6+ {[%clk 0:00:59.1]} 24... Kg8 {[%clk 0:01:22.8]}
25. Qg5+ {[%clk 0:00:29.4]} 25... Kh8 {[%clk 0:01:22.4]} 26. Qh4 {[%clk
0:00:19.6]} 26... Rxc2+ {[%clk 0:01:16.7]} 27. Kf1 {[%clk 0:00:19.9]} 27... f6
{[%clk 0:00:48.3]} 28. Rd7 {[%clk 0:00:16.7]} 28... Qxf2+ {[%clk 0:00:28.8]} 29.
Qxf2 {[%clk 0:00:17.6]} 29... Rxf2+ {[%clk 0:00:29.1]} 30. Kxf2 {[%clk
0:00:18.3]} 30... Rc8 {[%clk 0:00:28.8]} 31. Re7 {[%clk 0:00:18.1]} 31... c3
{[%clk 0:00:29]} 32. Rxe6 {[%clk 0:00:17.5]} 32... c2 {[%clk 0:00:29.1]} 33. Rc1
{[%clk 0:00:18]} 33... Kg7 {[%clk 0:00:29.3]} 34. Ra6 {[%clk 0:00:18.2]} 34...
Rc7 {[%clk 0:00:29.3]} 35. Ke3 {[%clk 0:00:16.3]} 35... Kg6 {[%clk 0:00:29]} 36.
Kd3 {[%clk 0:00:16.5]} 36... e4+ {[%clk 0:00:28.9]} 37. Kd2 {[%clk 0:00:17.1]}
37... f4 {[%clk 0:00:28.8]} 38. Rxc2 {[%clk 0:00:15.2]} 38... e3+ {[%clk
0:00:29]} 39. Kd3 {[%clk 0:00:15.8]} 39... Rd7+ {[%clk 0:00:26.6]} 40. Ke2
{[%clk 0:00:16.2]} 1-0

[Event "Early-Titled-Tuesday-Blitz-May-28-2024"]
[Site "Chess.com"]
[Date "2024.05.28"]
[Round "2"]
[White "salomez"]
[Black "Likvidator228"]
[Result "1/2-1/2"]
[WhiteElo "2313"]
[BlackElo "2520"]
[TimeControl "180+1"]
[EndTime "8:18:26 PDT"]
[Termination "Game drawn by agreement"]

1. e4 {[%clk 0:03:00.9]} 1... d6 {[%clk 0:02:55.4]} 2. d4 {[%clk 0:02:58.1]}
2... Nf6 {[%clk 0:02:55.7]} 3. Nc3 {[%clk 0:02:58]} 3... Nbd7 {[%clk 0:02:56.3]}
4. Nf3 {[%clk 0:02:49.5]} 4... e5 {[%clk 0:02:56.7]} 5. Bc4 {[%clk 0:02:49.1]}
5... h6 {[%clk 0:02:55.7]} 6. a4 {[%clk 0:02:46.3]} 6... Be7 {[%clk 0:02:54.3]}
7. O-O {[%clk 0:02:45.1]} 7... c6 {[%clk 0:02:54.2]} 8. Re1 {[%clk 0:02:43.7]}
8... Qc7 {[%clk 0:02:54.7]} 9. h3 {[%clk 0:02:40.9]} 9... Nf8 {[%clk 0:02:54.7]}
10. b3 {[%clk 0:02:39.1]} 10... Ng6 {[%clk 0:02:53.3]} 11. Bf1 {[%clk
0:02:37.8]} 11... O-O {[%clk 0:02:52.5]} 12. Kh2 {[%clk 0:02:24.3]} 12... exd4
{[%clk 0:02:47.2]} 13. Nxd4 {[%clk 0:02:23.9]} 13... d5+ {[%clk 0:02:47.5]} 14.
g3 {[%clk 0:02:19]} 14... Nxe4 {[%clk 0:02:46.5]} 15. Nxe4 {[%clk 0:02:18.3]}
15... dxe4 {[%clk 0:02:47.4]} 16. Rxe4 {[%clk 0:02:09.4]} 16... Bf6 {[%clk
0:02:47.5]} 17. c3 {[%clk 0:00:57.7]} 17... Rd8 {[%clk 0:02:46.6]} 18. Qe1
{[%clk 0:00:53.8]} 18... Bd7 {[%clk 0:02:10.7]} 19. Ba3 {[%clk 0:00:44.5]} 19...
c5 {[%clk 0:01:55.2]} 20. Nb5 {[%clk 0:00:42.6]} 20... Bxb5 {[%clk 0:01:44.4]}
21. axb5 {[%clk 0:00:43.3]} 21... b6 {[%clk 0:01:39.2]} 22. Bb2 {[%clk
0:00:40.6]} 22... Ne5 {[%clk 0:01:32.6]} 23. Bg2 {[%clk 0:00:28.1]} 23... Nd3
{[%clk 0:01:32.1]} 24. Qe2 {[%clk 0:00:28.3]} 24... Nxb2 {[%clk 0:01:18.5]} 25.
Qxb2 {[%clk 0:00:27.9]} 25... Rac8 {[%clk 0:01:16.6]} 26. Rea4 {[%clk 0:00:27]}
26... Qe5 {[%clk 0:01:13.4]} 27. Rxa7 {[%clk 0:00:15.1]} 27... Qxc3 {[%clk
0:01:13.3]} 28. Qxc3 {[%clk 0:00:16]} 28... Bxc3 {[%clk 0:01:13.8]} 29. Rc1
{[%clk 0:00:12.7]} 29... Bd4 {[%clk 0:01:12.5]} 30. Rc2 {[%clk 0:00:12.5]} 30...
Re8 {[%clk 0:01:09.1]} 31. Bd5 {[%clk 0:00:11.2]} 31... Rf8 {[%clk 0:01:05.8]}
32. Re2 {[%clk 0:00:10.9]} 32... Rcd8 {[%clk 0:01:00.3]} 33. Bc4 {[%clk
0:00:10.7]} 33... Bf6 {[%clk 0:00:58.7]} 34. Kg2 {[%clk 0:00:09.7]} 34... Rd6
{[%clk 0:00:47.6]} 35. Rxf7 {[%clk 0:00:09]} 35... Rxf7 {[%clk 0:00:47.5]} 36.
Re8+ {[%clk 0:00:09.2]} 36... Kh7 {[%clk 0:00:47.3]} 37. Bxf7 {[%clk 0:00:09.5]}
37... Rd2 {[%clk 0:00:43.1]} 38. Bc4 {[%clk 0:00:08.6]} 38... Bd4 {[%clk
0:00:42.8]} 39. Re2 {[%clk 0:00:08.3]} 39... Rxe2 {[%clk 0:00:41.3]} 40. Bxe2
{[%clk 0:00:08.1]} 40... g5 {[%clk 0:00:41.6]} 41. Bd3+ {[%clk 0:00:06.3]}
1/2-1/2

[Event "Early-Titled-Tuesday-Blitz-May-28-2024"]
[Site "Chess.com"]
[Date "2024.05.28"]
[Round "2"]
[White "GroovyKettle"]
[Black "JiaHaoxiang"]
[Result "0-1"]
[WhiteElo "2960"]
[BlackElo "2630"]
[TimeControl "180+1"]
[EndTime "8:18:27 PDT"]
[Termination "JiaHaoxiang won by resignation"]

1. g3 {[%clk 0:02:59.2]} 1... c5 {[%clk 0:02:55.6]} 2. Nf3 {[%clk 0:02:58.4]}
2... b6 {[%clk 0:02:53.8]} 3. Bg2 {[%clk 0:02:57.5]} 3... Bb7 {[%clk 0:02:54]}
4. O-O {[%clk 0:02:58]} 4... Nf6 {[%clk 0:02:52.3]} 5. d3 {[%clk 0:02:58.2]}
5... e6 {[%clk 0:02:51.9]} 6. c4 {[%clk 0:02:55.5]} 6... Be7 {[%clk 0:02:50.6]}
7. e4 {[%clk 0:02:52.7]} 7... O-O {[%clk 0:02:49.2]} 8. Nc3 {[%clk 0:02:50.6]}
8... Nc6 {[%clk 0:02:43.3]} 9. Re1 {[%clk 0:02:45.9]} 9... d6 {[%clk 0:02:43.2]}
10. a3 {[%clk 0:02:44.5]} 10... Ne5 {[%clk 0:02:29.4]} 11. Rb1 {[%clk
0:02:42.9]} 11... Nxf3+ {[%clk 0:02:23.9]} 12. Bxf3 {[%clk 0:02:43]} 12... Nd7
{[%clk 0:02:21.8]} 13. b4 {[%clk 0:02:41.2]} 13... Bf6 {[%clk 0:02:14.5]} 14.
Bb2 {[%clk 0:02:35]} 14... Ne5 {[%clk 0:02:13.5]} 15. Bg2 {[%clk 0:02:33.8]}
15... Nc6 {[%clk 0:02:10.8]} 16. f4 {[%clk 0:02:33.7]} 16... Nd4 {[%clk
0:02:07.5]} 17. bxc5 {[%clk 0:02:26.6]} 17... dxc5 {[%clk 0:02:04.8]} 18. e5
{[%clk 0:02:26.8]} 18... Bxg2 {[%clk 0:02:04.2]} 19. Kxg2 {[%clk 0:02:27.7]}
19... Be7 {[%clk 0:02:00.5]} 20. Ne2 {[%clk 0:02:18.4]} 20... Nf5 {[%clk
0:01:58.7]} 21. Qd2 {[%clk 0:02:17.5]} 21... Qd7 {[%clk 0:01:57.2]} 22. Nc3
{[%clk 0:02:15.6]} 22... Rfd8 {[%clk 0:01:55.5]} 23. Rbd1 {[%clk 0:02:15.6]}
23... Rab8 {[%clk 0:01:35.9]} 24. Qe2 {[%clk 0:02:12.9]} 24... a6 {[%clk
0:01:28.3]} 25. Ne4 {[%clk 0:02:04.3]} 25... b5 {[%clk 0:01:27.4]} 26. cxb5
{[%clk 0:01:55.9]} 26... axb5 {[%clk 0:01:25.9]} 27. Qg4 {[%clk 0:01:50.1]}
27... Qd5 {[%clk 0:01:10.6]} 28. Kh3 {[%clk 0:01:49.5]} 28... Qb3 {[%clk
0:01:07.7]} 29. Rb1 {[%clk 0:01:34.7]} 29... Qxd3 {[%clk 0:01:04.1]} 30. Nf6+
{[%clk 0:01:27]} 30... Bxf6 {[%clk 0:01:03.1]} 31. exf6 {[%clk 0:01:27.3]} 31...
g6 {[%clk 0:00:58.4]} 32. Be5 {[%clk 0:01:27.5]} 32... Rbc8 {[%clk 0:00:48.4]}
33. Red1 {[%clk 0:01:20.2]} 33... Qxa3 {[%clk 0:00:47.3]} 34. Rxd8+ {[%clk
0:01:16.4]} 34... Rxd8 {[%clk 0:00:47.6]} 35. Rxb5 {[%clk 0:01:17.1]} 35... Qd3
{[%clk 0:00:46.3]} 36. Rb2 {[%clk 0:01:06.8]} 36... Qf1+ {[%clk 0:00:44.9]} 37.
Rg2 {[%clk 0:01:07]} 37... Rd2 {[%clk 0:00:39.3]} 38. Qf3 {[%clk 0:01:00.8]}
38... Qxf3 {[%clk 0:00:37.3]} 39. Rxd2 {[%clk 0:01:01]} 39... Qf1+ {[%clk
0:00:35.7]} 40. Kg4 {[%clk 0:01:01.4]} 40... Nd4 {[%clk 0:00:22.3]} 0-1